[Event "Titled Tuesday Blitz October 11 Early 2022"]
[White "Haukenfrers, Dale"]
[Black "Troltenier, Dirk"]
[WhiteFideId "2603780"]
[BlackFideId "4606400"]
[WhiteElo "1964"]
[BlackElo "2274"]
[Result "0-1"]
[Round "06"]
[TimeControl "180+1"]
[Date "2022.10.12"]
[WhiteClock "0:01:14"]
[BlackClock "0:00:14"]

1. c3 {[%clk 0:03:00]}  Nf6 {[%clk 0:02:58]} 2. d3 {[%clk 0:03:01]}  d5 {[%clk 0:02:58]} 3. g3 {[%clk 0:03:02]}  Bg4 {[%clk 0:02:55]} 4. Qb3 {[%clk 0:03:01]}  Qc8 {[%clk 0:02:53]} 5. Bg2 {[%clk 0:02:56]}  c6 {[%clk 0:02:52]} 6. Nf3 {[%clk 0:02:55]}  Nbd7 {[%clk 0:02:41]} 7. h3 {[%clk 0:02:56]}  Bxf3 {[%clk 0:02:25]} 8. Bxf3 {[%clk 0:02:56]}  e6 {[%clk 0:02:25]} 9. Nd2 {[%clk 0:02:55]}  Bd6 {[%clk 0:02:21]} 10. Bg2 {[%clk 0:02:55]}  O-O {[%clk 0:02:18]} 11. Nf3 {[%clk 0:02:55]}  Nc5 {[%clk 0:02:17]} 12. Qc2 {[%clk 0:02:54]}  e5 {[%clk 0:02:15]} 13. g4 {[%clk 0:02:54]}  Re8 {[%clk 0:02:13]} 14. O-O {[%clk 0:02:49]}  Ne6 {[%clk 0:01:56]} 15. e4 {[%clk 0:02:46]}  Qd7 {[%clk 0:01:40]} 16. Re1 {[%clk 0:02:46]}  dxe4 {[%clk 0:01:33]} 17. dxe4 {[%clk 0:02:45]}  Qc7 {[%clk 0:01:24]} 18. Be3 {[%clk 0:02:44]}  Bc5 {[%clk 0:01:23]} 19. Bg5 {[%clk 0:02:31]}  Nxg5 {[%clk 0:01:21]} 20. Nxg5 {[%clk 0:02:30]}  h6 {[%clk 0:01:17]} 21. Nf3 {[%clk 0:02:29]}  Rad8 {[%clk 0:01:16]} 22. Nh4 {[%clk 0:02:25]}  g6 {[%clk 0:01:07]} 23. Rad1 {[%clk 0:02:23]}  Kg7 {[%clk 0:01:06]} 24. Rxd8 {[%clk 0:02:21]}  Rxd8 {[%clk 0:01:06]} 25. Rd1 {[%clk 0:02:21]}  Rxd1+ {[%clk 0:01:04]} 26. Qxd1 {[%clk 0:02:21]}  Qb6 {[%clk 0:01:01]} 27. Qd2 {[%clk 0:02:18]}  a5 {[%clk 0:01:00]} 28. b3 {[%clk 0:02:17]}  Qc7 {[%clk 0:00:53]} 29. Qd3 {[%clk 0:02:16]}  Nd7 {[%clk 0:00:48]} 30. Bf1 {[%clk 0:02:15]}  Nf8 {[%clk 0:00:48]} 31. Kg2 {[%clk 0:02:15]}  Ne6 {[%clk 0:00:48]} 32. Qf3 {[%clk 0:02:10]}  Qe7 {[%clk 0:00:46]} 33. Nf5+ {[%clk 0:02:05]}  gxf5 {[%clk 0:00:45]} 34. exf5 {[%clk 0:02:02]}  Nf4+ {[%clk 0:00:38]} 35. Kh1 {[%clk 0:02:00]}  Qd6 {[%clk 0:00:38]} 36. Bc4 {[%clk 0:01:52]}  b5 {[%clk 0:00:38]} 37. Bf1 {[%clk 0:01:52]}  Qd5 {[%clk 0:00:31]} 38. Qxd5 {[%clk 0:01:48]}  Nxd5 {[%clk 0:00:32]} 39. c4 {[%clk 0:01:47]}  bxc4 {[%clk 0:00:31]} 40. Bxc4 {[%clk 0:01:47]}  Kf6 {[%clk 0:00:28]} 41. Kg2 {[%clk 0:01:44]}  Nc3 {[%clk 0:00:27]} 42. Ba6 {[%clk 0:01:39]}  Nxa2 {[%clk 0:00:26]} 43. Bb7 {[%clk 0:01:39]}  Nb4 {[%clk 0:00:26]} 44. h4 {[%clk 0:01:37]}  Bd4 {[%clk 0:00:25]} 45. f3 {[%clk 0:01:35]}  c5 {[%clk 0:00:24]} 46. Kf1 {[%clk 0:01:32]}  Nd3 {[%clk 0:00:24]} 47. Ke2 {[%clk 0:01:29]}  Nf4+ {[%clk 0:00:24]} 48. Kd2 {[%clk 0:01:28]}  Ng2 {[%clk 0:00:23]} 49. Kd3 {[%clk 0:01:27]}  Nxh4 {[%clk 0:00:22]} 50. Kc4 {[%clk 0:01:27]}  Kg5 {[%clk 0:00:18]} 51. Kb5 {[%clk 0:01:27]}  Kf4 {[%clk 0:00:15]} 52. b4 {[%clk 0:01:26]}  axb4 {[%clk 0:00:15]} 53. Bd5 {[%clk 0:01:24]}  f6 {[%clk 0:00:13]} 54. Kc6 {[%clk 0:01:24]}  Nxf3 {[%clk 0:00:14]} 55. Kd6 {[%clk 0:01:23]}  e4 {[%clk 0:00:14]} 56. Ke6 {[%clk 0:01:22]}  e3 {[%clk 0:00:14]} 57. Bc4 {[%clk 0:01:20]}  Ng1 {[%clk 0:00:14]} 58. Kf7 {[%clk 0:01:20]}  e2 {[%clk 0:00:15]} 59. Kg6 {[%clk 0:01:20]}  e1=Q {[%clk 0:00:15]} 60. Kxh6 {[%clk 0:01:19]}  Qe8 {[%clk 0:00:14]} 61. g5 {[%clk 0:01:18]}  Qh8+ {[%clk 0:00:13]} 62. Kg6 {[%clk 0:01:18]}  fxg5 {[%clk 0:00:14]} 63. f6 {[%clk 0:01:17]}  Qxf6+ {[%clk 0:00:14]} 64. Kh5 {[%clk 0:01:14]}  g4 {[%clk 0:00:15]} 65. Be6 {[%clk 0:01:14]}  Qg5# {[%clk 0:00:14]} 0-1


[Site "https://www.chess.com"]

[Event "Titled Tuesday Blitz October 11 Early 2022"]
[White "Ianov, Viktor"]
[Black "Sovetbekova, Nurai"]
[WhiteFideId "14102730"]
[BlackFideId "13801910"]
[WhiteElo "2152"]
[BlackElo "1925"]
[Result "1-0"]
[Round "06"]
[TimeControl "180+1"]
[Date "2022.10.12"]
[WhiteClock "0:01:01"]
[BlackClock "0:00:08"]

1. Nf3 {[%clk 0:02:42]}  Nf6 {[%clk 0:02:59]} 2. g3 {[%clk 0:02:41]}  g6 {[%clk 0:02:59]} 3. b3 {[%clk 0:02:39]}  Bg7 {[%clk 0:02:59]} 4. Bb2 {[%clk 0:02:39]}  O-O {[%clk 0:03:00]} 5. Bg2 {[%clk 0:02:39]}  c5 {[%clk 0:02:57]} 6. c4 {[%clk 0:02:39]}  d6 {[%clk 0:02:54]} 7. d4 {[%clk 0:02:38]}  Qa5+ {[%clk 0:02:42]} 8. Bc3 {[%clk 0:02:36]}  Qb6 {[%clk 0:02:36]} 9. dxc5 {[%clk 0:02:34]}  dxc5 {[%clk 0:02:32]} 10. O-O {[%clk 0:02:34]}  Nc6 {[%clk 0:02:27]} 11. Nbd2 {[%clk 0:02:31]}  Rd8 {[%clk 0:02:21]} 12. Qc1 {[%clk 0:02:30]}  Nd4 {[%clk 0:02:14]} 13. Re1 {[%clk 0:02:24]}  Qc7 {[%clk 0:01:54]} 14. e3 {[%clk 0:02:21]}  Nxf3+ {[%clk 0:01:49]} 15. Nxf3 {[%clk 0:02:21]}  Bf5 {[%clk 0:01:49]} 16. Qb2 {[%clk 0:02:20]}  Be4 {[%clk 0:01:45]} 17. Rad1 {[%clk 0:02:18]}  Qc6 {[%clk 0:01:33]} 18. Ne5 {[%clk 0:02:13]}  Qe6 {[%clk 0:01:23]} 19. f3 {[%clk 0:02:08]}  Bc6 {[%clk 0:01:22]} 20. Nxc6 {[%clk 0:02:06]}  Qxc6 {[%clk 0:01:21]} 21. f4 {[%clk 0:02:03]}  Qe6 {[%clk 0:01:06]} 22. Be5 {[%clk 0:01:33]}  Nh5 {[%clk 0:00:47]} 23. Bxb7 {[%clk 0:01:24]}  Rxd1 {[%clk 0:00:32]} 24. Rxd1 {[%clk 0:01:22]}  Rf8 {[%clk 0:00:23]} 25. Bd5 {[%clk 0:01:20]}  Qg4 {[%clk 0:00:20]} 26. Rf1 {[%clk 0:01:19]}  e6 {[%clk 0:00:16]} 27. Bf3 {[%clk 0:01:16]}  Qh3 {[%clk 0:00:15]} 28. Qg2 {[%clk 0:01:11]}  Qxg2+ {[%clk 0:00:14]} 29. Kxg2 {[%clk 0:01:11]}  Bxe5 {[%clk 0:00:14]} 30. fxe5 {[%clk 0:01:11]}  Ng7 {[%clk 0:00:14]} 31. Rd1 {[%clk 0:01:09]}  Nf5 {[%clk 0:00:14]} 32. Kf2 {[%clk 0:01:09]}  h5 {[%clk 0:00:14]} 33. Rd7 {[%clk 0:01:04]}  a5 {[%clk 0:00:11]} 34. Be4 {[%clk 0:01:04]}  Nh6 {[%clk 0:00:10]} 35. h3 {[%clk 0:01:03]}  Ra8 {[%clk 0:00:08]} 36. Bxa8 {[%clk 0:01:01]} 1-0


[Site "https://www.chess.com"]

[Event "Titled Tuesday Blitz October 11 Early 2022"]
[White "Indjic, Aleksandar"]
[Black "Colas, Joshua"]
[WhiteFideId "911925"]
[BlackFideId "2044447"]
[WhiteElo "2592"]
[BlackElo "2347"]
[Result "0-1"]
[Round "06"]
[TimeControl "180+1"]
[Date "2022.10.11"]
[WhiteClock "0:00:02"]
[BlackClock "0:00:08"]

1. d4 {[%clk 0:03:00]}  d5 {[%clk 0:02:59]} 2. c4 {[%clk 0:02:58]}  e6 {[%clk 0:02:59]} 3. Nc3 {[%clk 0:02:58]}  a6 {[%clk 0:02:58]} 4. cxd5 {[%clk 0:02:57]}  exd5 {[%clk 0:02:57]} 5. Nf3 {[%clk 0:02:57]}  Nf6 {[%clk 0:02:57]} 6. Qb3 {[%clk 0:02:51]}  c6 {[%clk 0:02:47]} 7. e4 {[%clk 0:02:50]}  dxe4 {[%clk 0:02:43]} 8. Ng5 {[%clk 0:02:42]}  Nd5 {[%clk 0:02:10]} 9. Bc4 {[%clk 0:02:41]}  Be7 {[%clk 0:02:08]} 10. Ngxe4 {[%clk 0:02:22]}  O-O {[%clk 0:01:47]} 11. Nxd5 {[%clk 0:02:20]}  cxd5 {[%clk 0:01:48]} 12. Bxd5 {[%clk 0:02:20]}  Nc6 {[%clk 0:01:41]} 13. Bxc6 {[%clk 0:01:58]}  bxc6 {[%clk 0:01:40]} 14. Be3 {[%clk 0:01:55]}  Be6 {[%clk 0:01:34]} 15. Qc3 {[%clk 0:01:55]}  Rb8 {[%clk 0:01:22]} 16. O-O {[%clk 0:01:53]}  Bb4 {[%clk 0:01:11]} 17. Qc1 {[%clk 0:01:22]}  Qd5 {[%clk 0:01:02]} 18. f3 {[%clk 0:01:20]}  Qf5 {[%clk 0:01:01]} 19. Bd2 {[%clk 0:00:46]}  Bd5 {[%clk 0:00:56]} 20. Re1 {[%clk 0:00:46]}  Be7 {[%clk 0:00:48]} 21. Nc3 {[%clk 0:00:40]}  Bf6 {[%clk 0:00:47]} 22. Be3 {[%clk 0:00:40]}  Be6 {[%clk 0:00:46]} 23. Bf2 {[%clk 0:00:40]}  Rfd8 {[%clk 0:00:44]} 24. Qd2 {[%clk 0:00:39]}  c5 {[%clk 0:00:43]} 25. d5 {[%clk 0:00:35]}  Bxd5 {[%clk 0:00:43]} 26. Nxd5 {[%clk 0:00:35]}  Rxd5 {[%clk 0:00:44]} 27. Qe2 {[%clk 0:00:32]}  h5 {[%clk 0:00:40]} 28. Rab1 {[%clk 0:00:29]}  a5 {[%clk 0:00:38]} 29. b3 {[%clk 0:00:30]}  Rbd8 {[%clk 0:00:33]} 30. Qb5 {[%clk 0:00:28]}  Rd2 {[%clk 0:00:22]} 31. Rbc1 {[%clk 0:00:15]}  Qg6 {[%clk 0:00:16]} 32. Re2 {[%clk 0:00:15]}  Rd1+ {[%clk 0:00:13]} 33. Re1 {[%clk 0:00:15]}  Rxc1 {[%clk 0:00:12]} 34. Rxc1 {[%clk 0:00:15]}  Rd2 {[%clk 0:00:12]} 35. Qxc5 {[%clk 0:00:07]}  Rxa2 {[%clk 0:00:12]} 36. g3 {[%clk 0:00:06]}  h4 {[%clk 0:00:11]} 37. Qc8+ {[%clk 0:00:05]}  Kh7 {[%clk 0:00:10]} 38. Qg4 {[%clk 0:00:04]}  Qxg4 {[%clk 0:00:10]} 39. fxg4 {[%clk 0:00:05]}  h3 {[%clk 0:00:08]} 40. Kf1 {[%clk 0:00:06]}  Rb2 {[%clk 0:00:08]} 41. Rd1 {[%clk 0:00:04]}  Rxb3 {[%clk 0:00:08]} 42. Rd5 {[%clk 0:00:04]}  a4 {[%clk 0:00:06]} 43. Ra5 {[%clk 0:00:04]}  a3 {[%clk 0:00:06]} 44. Bc5 {[%clk 0:00:04]}  Rb1+ {[%clk 0:00:06]} 45. Ke2 {[%clk 0:00:04]}  Rb2+ {[%clk 0:00:06]} 46. Kf3 {[%clk 0:00:05]}  a2 {[%clk 0:00:07]} 47. g5 {[%clk 0:00:04]}  Bxg5 {[%clk 0:00:06]} 48. Bd4 {[%clk 0:00:04]}  Rxh2 {[%clk 0:00:06]} 49. Kg4 {[%clk 0:00:04]}  Bf6 {[%clk 0:00:06]} 50. Bxf6 {[%clk 0:00:04]}  gxf6 {[%clk 0:00:07]} 51. Ra7 {[%clk 0:00:05]}  f5+ {[%clk 0:00:06]} 52. Kh4 {[%clk 0:00:05]}  Kg7 {[%clk 0:00:06]} 53. Ra6 {[%clk 0:00:05]}  f6 {[%clk 0:00:05]} 54. Ra7+ {[%clk 0:00:06]}  Kf8 {[%clk 0:00:05]} 55. Ra5 {[%clk 0:00:04]}  Ke7 {[%clk 0:00:05]} 56. Ra6 {[%clk 0:00:05]}  Kd7 {[%clk 0:00:06]} 57. Ra3 {[%clk 0:00:03]}  Kc6 {[%clk 0:00:06]} 58. Ra4 {[%clk 0:00:03]}  Kb5 {[%clk 0:00:06]} 59. Ra8 {[%clk 0:00:04]}  Kc4 {[%clk 0:00:06]} 60. Rc8+ {[%clk 0:00:04]}  Kd3 {[%clk 0:00:06]} 61. Ra8 {[%clk 0:00:04]}  Ke4 {[%clk 0:00:06]} 62. Re8+ {[%clk 0:00:03]}  Kf3 {[%clk 0:00:06]} 63. Ra8 {[%clk 0:00:04]}  f4 {[%clk 0:00:06]} 64. gxf4 {[%clk 0:00:03]}  Kxf4 {[%clk 0:00:06]} 65. Ra3 {[%clk 0:00:03]}  Ke4 {[%clk 0:00:06]} 66. Kg3 {[%clk 0:00:03]}  Rd2 {[%clk 0:00:05]} 67. Ra4+ {[%clk 0:00:02]}  Ke3 {[%clk 0:00:05]} 68. Kxh3 {[%clk 0:00:02]}  Ke2 {[%clk 0:00:05]} 69. Kg2 {[%clk 0:00:01]}  Kd1+ {[%clk 0:00:06]} 70. Kf1 {[%clk 0:00:02]}  Kc1 {[%clk 0:00:06]} 71. Ke1 {[%clk 0:00:01]}  Rb2 {[%clk 0:00:07]} 72. Rc4+ {[%clk 0:00:01]}  Kb1 {[%clk 0:00:07]} 73. Rc6 {[%clk 0:00:02]}  a1=Q {[%clk 0:00:07]} 74. Rxf6 {[%clk 0:00:02]}  Ka2# {[%clk 0:00:08]} 0-1


[Site "https://www.chess.com"]

[Event "Titled Tuesday Blitz October 11 Early 2022"]
[White "Jean Louis, Marckens"]
[Black "Moreno Perez, Tobias Sebastian"]
[WhiteFideId "11900270"]
[BlackFideId "186716"]
[WhiteElo "2030"]
[BlackElo "2482"]
[Result "1/2-1/2"]
[Round "06"]
[TimeControl "180+1"]
[Date "2022.10.12"]
[WhiteClock "0:00:08"]
[BlackClock "0:00:05"]

1. d4 {[%clk 0:02:56]}  d5 {[%clk 0:02:58]} 2. c4 {[%clk 0:02:17]}  c6 {[%clk 0:02:56]} 3. Nf3 {[%clk 0:02:10]}  Nf6 {[%clk 0:02:54]} 4. Nc3 {[%clk 0:02:10]}  dxc4 {[%clk 0:02:54]} 5. e4 {[%clk 0:02:09]}  b5 {[%clk 0:02:54]} 6. e5 {[%clk 0:02:05]}  Nd5 {[%clk 0:02:54]} 7. Be2 {[%clk 0:02:05]}  e6 {[%clk 0:02:53]} 8. O-O {[%clk 0:02:01]}  Be7 {[%clk 0:02:53]} 9. Ne4 {[%clk 0:02:01]}  h6 {[%clk 0:02:50]} 10. b3 {[%clk 0:01:57]}  cxb3 {[%clk 0:02:47]} 11. Qxb3 {[%clk 0:01:57]}  O-O {[%clk 0:02:47]} 12. Ba3 {[%clk 0:01:57]}  a5 {[%clk 0:02:40]} 13. Bxe7 {[%clk 0:01:56]}  Qxe7 {[%clk 0:02:40]} 14. Rac1 {[%clk 0:01:55]}  a4 {[%clk 0:02:38]} 15. Qb1 {[%clk 0:01:46]}  Nf4 {[%clk 0:02:34]} 16. Bd1 {[%clk 0:01:40]}  Bd7 {[%clk 0:02:03]} 17. g3 {[%clk 0:01:38]}  Nd5 {[%clk 0:02:03]} 18. Ne1 {[%clk 0:01:29]}  Na6 {[%clk 0:02:02]} 19. Bf3 {[%clk 0:01:26]}  Rfc8 {[%clk 0:01:51]} 20. Nd3 {[%clk 0:01:25]}  Be8 {[%clk 0:01:49]} 21. Nd6 {[%clk 0:01:25]}  Rcb8 {[%clk 0:01:46]} 22. Nc5 {[%clk 0:01:24]}  Nxc5 {[%clk 0:01:45]} 23. Rxc5 {[%clk 0:01:22]}  Bd7 {[%clk 0:01:43]} 24. Rfc1 {[%clk 0:01:21]}  b4 {[%clk 0:01:40]} 25. Bd1 {[%clk 0:01:17]}  Qg5 {[%clk 0:01:30]} 26. Qe4 {[%clk 0:01:08]}  b3 {[%clk 0:01:26]} 27. axb3 {[%clk 0:01:07]}  axb3 {[%clk 0:01:27]} 28. f4 {[%clk 0:01:07]}  Qd8 {[%clk 0:01:19]} 29. Rb1 {[%clk 0:01:06]}  b2 {[%clk 0:01:14]} 30. Bc2 {[%clk 0:01:06]}  f5 {[%clk 0:01:02]} 31. exf6 {[%clk 0:00:59]}  Nxf6 {[%clk 0:01:02]} 32. Qd3 {[%clk 0:00:50]}  Ra1 {[%clk 0:00:56]} 33. Ne4 {[%clk 0:00:49]}  Nxe4 {[%clk 0:00:32]} 34. Qxe4 {[%clk 0:00:49]}  Qf6 {[%clk 0:00:30]} 35. Qh7+ {[%clk 0:00:46]}  Kf7 {[%clk 0:00:29]} 36. Qe4 {[%clk 0:00:32]}  Rb4 {[%clk 0:00:26]} 37. Qe5 {[%clk 0:00:18]}  Qxe5 {[%clk 0:00:25]} 38. dxe5 {[%clk 0:00:16]}  Rd4 {[%clk 0:00:22]} 39. Kf2 {[%clk 0:00:15]}  Rd2+ {[%clk 0:00:21]} 40. Ke3 {[%clk 0:00:14]}  Rxb1 {[%clk 0:00:17]} 41. Bxb1 {[%clk 0:00:14]}  Rxh2 {[%clk 0:00:17]} 42. Rc3 {[%clk 0:00:12]}  Ke7 {[%clk 0:00:10]} 43. Rb3 {[%clk 0:00:12]}  Kd8 {[%clk 0:00:09]} 44. Rb7 {[%clk 0:00:12]}  Kc8 {[%clk 0:00:08]} 45. Rb3 {[%clk 0:00:12]}  Kc7 {[%clk 0:00:07]} 46. Be4 {[%clk 0:00:13]}  c5 {[%clk 0:00:05]} 47. Rb7+ {[%clk 0:00:13]}  Kd8 {[%clk 0:00:06]} 48. Rb6 {[%clk 0:00:12]}  c4 {[%clk 0:00:04]} 49. Kd4 {[%clk 0:00:13]}  Re2 {[%clk 0:00:01]} 50. Bg6 {[%clk 0:00:12]}  Rd2+ {[%clk 0:00:01]} 51. Kxc4 {[%clk 0:00:12]}  Ke7 {[%clk 0:00:01]} 52. Kc5 {[%clk 0:00:12]}  Kd8 {[%clk 0:00:02]} 53. g4 {[%clk 0:00:11]}  Rd5+ {[%clk 0:00:02]} 54. Kc4 {[%clk 0:00:10]}  Rd2 {[%clk 0:00:02]} 55. f5 {[%clk 0:00:10]}  exf5 {[%clk 0:00:02]} 56. gxf5 {[%clk 0:00:11]}  Rc2+ {[%clk 0:00:01]} 57. Kd3 {[%clk 0:00:11]}  Ba4 {[%clk 0:00:01]} 58. e6 {[%clk 0:00:10]}  Rc1 {[%clk 0:00:01]} 59. Rxb2 {[%clk 0:00:10]}  Ke7 {[%clk 0:00:02]} 60. Rb7+ {[%clk 0:00:09]}  Kf6 {[%clk 0:00:02]} 61. Rf7+ {[%clk 0:00:09]}  Ke5 {[%clk 0:00:02]} 62. Rxg7 {[%clk 0:00:09]}  Rd1+ {[%clk 0:00:03]} 63. Kc4 {[%clk 0:00:10]}  Rd8 {[%clk 0:00:03]} 64. e7 {[%clk 0:00:09]}  Rc8+ {[%clk 0:00:03]} 65. Kb4 {[%clk 0:00:09]}  Be8 {[%clk 0:00:04]} 66. Bxe8 {[%clk 0:00:08]}  Rxe8 {[%clk 0:00:04]} 67. Rh7 {[%clk 0:00:08]}  Kxf5 {[%clk 0:00:03]} 68. Rxh6 {[%clk 0:00:08]}  Rxe7 {[%clk 0:00:04]} 69. Rc6 {[%clk 0:00:07]}  Rd7 {[%clk 0:00:04]} 70. Rc5+ {[%clk 0:00:07]}  Ke4 {[%clk 0:00:04]} 71. Kb5 {[%clk 0:00:08]}  Rd5 {[%clk 0:00:04]} 72. Rxd5 {[%clk 0:00:08]}  Kxd5 {[%clk 0:00:05]} 1/2-1/2


[Site "https://www.chess.com"]

[Event "Titled Tuesday Blitz October 11 Early 2022"]
[White "Jobava, Baadur"]
[Black "Kovalenko, Igor"]
[WhiteFideId "13601520"]
[BlackFideId "14117908"]
[WhiteElo "2582"]
[BlackElo "2574"]
[Result "1/2-1/2"]
[Round "06"]
[TimeControl "180+1"]
[Date "2022.10.11"]
[WhiteClock "0:00:09"]
[BlackClock "0:00:13"]

1. e4 {[%clk 0:03:00]}  c5 {[%clk 0:02:59]} 2. c3 {[%clk 0:03:01]}  Nf6 {[%clk 0:02:58]} 3. e5 {[%clk 0:03:01]}  Nd5 {[%clk 0:02:59]} 4. Nf3 {[%clk 0:03:02]}  d6 {[%clk 0:02:59]} 5. exd6 {[%clk 0:03:02]}  e6 {[%clk 0:02:58]} 6. g3 {[%clk 0:03:02]}  Bxd6 {[%clk 0:02:57]} 7. Bg2 {[%clk 0:03:03]}  O-O {[%clk 0:02:57]} 8. O-O {[%clk 0:03:04]}  Nc6 {[%clk 0:02:57]} 9. d4 {[%clk 0:03:04]}  cxd4 {[%clk 0:02:56]} 10. Nxd4 {[%clk 0:03:05]}  Bc5 {[%clk 0:02:39]} 11. Nxc6 {[%clk 0:02:52]}  bxc6 {[%clk 0:02:40]} 12. Nd2 {[%clk 0:02:51]}  a5 {[%clk 0:02:37]} 13. Ne4 {[%clk 0:02:51]}  Be7 {[%clk 0:02:37]} 14. Qc2 {[%clk 0:02:46]}  a4 {[%clk 0:02:34]} 15. Re1 {[%clk 0:02:42]}  h6 {[%clk 0:02:27]} 16. h4 {[%clk 0:02:42]}  Qc7 {[%clk 0:02:18]} 17. h5 {[%clk 0:02:34]}  Rd8 {[%clk 0:02:18]} 18. a3 {[%clk 0:02:27]}  Ra5 {[%clk 0:02:17]} 19. c4 {[%clk 0:02:25]}  Nf6 {[%clk 0:02:16]} 20. Bf4 {[%clk 0:02:25]}  Qb6 {[%clk 0:02:06]} 21. Be3 {[%clk 0:02:18]}  Qc7 {[%clk 0:02:02]} 22. Bf4 {[%clk 0:02:16]}  Qb6 {[%clk 0:01:45]} 23. c5 {[%clk 0:02:16]}  Bxc5 {[%clk 0:01:26]} 24. Nxf6+ {[%clk 0:01:59]}  gxf6 {[%clk 0:01:27]} 25. Bxh6 {[%clk 0:01:57]}  Bd4 {[%clk 0:01:27]} 26. Qe2 {[%clk 0:01:54]}  Kh7 {[%clk 0:01:23]} 27. Bc1 {[%clk 0:01:15]}  Re5 {[%clk 0:01:19]} 28. Qc2+ {[%clk 0:01:09]}  Kh8 {[%clk 0:00:47]} 29. Rxe5 {[%clk 0:01:08]}  Bxe5 {[%clk 0:00:48]} 30. Rb1 {[%clk 0:00:58]}  Ba6 {[%clk 0:00:37]} 31. Be3 {[%clk 0:00:53]}  Qb3 {[%clk 0:00:33]} 32. Qxc6 {[%clk 0:00:51]}  Bd3 {[%clk 0:00:31]} 33. Re1 {[%clk 0:00:46]}  Qxb2 {[%clk 0:00:24]} 34. Qxa4 {[%clk 0:00:44]}  Bf5 {[%clk 0:00:19]} 35. Qa7 {[%clk 0:00:37]}  Kg7 {[%clk 0:00:19]} 36. h6+ {[%clk 0:00:37]}  Kg6 {[%clk 0:00:19]} 37. h7 {[%clk 0:00:36]}  Rh8 {[%clk 0:00:17]} 38. Qe7 {[%clk 0:00:22]}  Rxh7 {[%clk 0:00:16]} 39. Qf8 {[%clk 0:00:22]}  Qb8 {[%clk 0:00:13]} 40. Qxb8 {[%clk 0:00:20]}  Bxb8 {[%clk 0:00:14]} 41. a4 {[%clk 0:00:20]}  Bc7 {[%clk 0:00:14]} 42. Rc1 {[%clk 0:00:19]}  Ba5 {[%clk 0:00:14]} 43. Rc5 {[%clk 0:00:19]}  Bb6 {[%clk 0:00:14]} 44. Rc8 {[%clk 0:00:13]}  Bxe3 {[%clk 0:00:15]} 45. fxe3 {[%clk 0:00:14]}  Rh5 {[%clk 0:00:15]} 46. Rc5 {[%clk 0:00:11]}  Rh8 {[%clk 0:00:14]} 47. a5 {[%clk 0:00:11]}  Rb8 {[%clk 0:00:14]} 48. Rc1 {[%clk 0:00:09]}  Bd3 {[%clk 0:00:14]} 49. Bf1 {[%clk 0:00:08]}  Bxf1 {[%clk 0:00:14]} 50. Kxf1 {[%clk 0:00:09]}  Ra8 {[%clk 0:00:14]} 51. Ra1 {[%clk 0:00:10]}  Kf5 {[%clk 0:00:15]} 52. a6 {[%clk 0:00:09]}  Ke4 {[%clk 0:00:15]} 53. Ke2 {[%clk 0:00:09]}  Kd5 {[%clk 0:00:16]} 54. Kf3 {[%clk 0:00:09]}  Kc6 {[%clk 0:00:16]} 55. Kg4 {[%clk 0:00:10]}  Kb6 {[%clk 0:00:15]} 56. a7 {[%clk 0:00:08]}  Kb7 {[%clk 0:00:14]} 57. e4 {[%clk 0:00:07]}  Rg8+ {[%clk 0:00:14]} 58. Kf4 {[%clk 0:00:06]}  Ka8 {[%clk 0:00:15]} 59. g4 {[%clk 0:00:05]}  Rg7 {[%clk 0:00:15]} 60. Kf3 {[%clk 0:00:04]}  Rg5 {[%clk 0:00:14]} 61. Rc1 {[%clk 0:00:04]}  Kxa7 {[%clk 0:00:13]} 62. Rc7+ {[%clk 0:00:05]}  Kb6 {[%clk 0:00:13]} 63. Rxf7 {[%clk 0:00:05]}  Rg6 {[%clk 0:00:14]} 64. Re7 {[%clk 0:00:06]}  e5 {[%clk 0:00:14]} 65. Kg3 {[%clk 0:00:05]}  Kc5 {[%clk 0:00:13]} 66. Rd7 {[%clk 0:00:06]}  Kc6 {[%clk 0:00:14]} 67. Rd8 {[%clk 0:00:06]}  Kc7 {[%clk 0:00:14]} 68. Rh8 {[%clk 0:00:06]}  Kd6 {[%clk 0:00:14]} 69. Kh4 {[%clk 0:00:07]}  Ke7 {[%clk 0:00:14]} 70. Ra8 {[%clk 0:00:06]}  Ke6 {[%clk 0:00:13]} 71. Ra6+ {[%clk 0:00:05]}  Kf7 {[%clk 0:00:13]} 72. Ra7+ {[%clk 0:00:06]}  Ke6 {[%clk 0:00:14]} 73. Kg3 {[%clk 0:00:07]}  Rg8 {[%clk 0:00:12]} 74. Kf3 {[%clk 0:00:06]}  Rb8 {[%clk 0:00:12]} 75. Ra6+ {[%clk 0:00:07]}  Kf7 {[%clk 0:00:12]} 76. g5 {[%clk 0:00:08]}  fxg5 {[%clk 0:00:12]} 77. Kg4 {[%clk 0:00:08]}  Rb1 {[%clk 0:00:12]} 78. Kf5 {[%clk 0:00:07]}  Rf1+ {[%clk 0:00:12]} 79. Kxe5 {[%clk 0:00:08]}  g4 {[%clk 0:00:12]} 80. Ra3 {[%clk 0:00:07]}  Kg6 {[%clk 0:00:12]} 81. Ra8 {[%clk 0:00:07]}  Kg5 {[%clk 0:00:12]} 82. Rg8+ {[%clk 0:00:07]}  Kh4 {[%clk 0:00:13]} 83. Rh8+ {[%clk 0:00:07]}  Kg3 {[%clk 0:00:13]} 84. Kd6 {[%clk 0:00:08]}  Rd1+ {[%clk 0:00:12]} 85. Ke6 {[%clk 0:00:08]}  Kf3 {[%clk 0:00:12]} 86. e5 {[%clk 0:00:08]}  g3 {[%clk 0:00:12]} 87. Rf8+ {[%clk 0:00:08]}  Ke3 {[%clk 0:00:12]} 88. Rg8 {[%clk 0:00:09]}  Kf2 {[%clk 0:00:13]} 89. Kf6 {[%clk 0:00:08]}  g2 {[%clk 0:00:13]} 90. e6 {[%clk 0:00:08]}  Re1 {[%clk 0:00:13]} 91. Rxg2+ {[%clk 0:00:07]}  Kxg2 {[%clk 0:00:13]} 92. e7 {[%clk 0:00:08]}  Rxe7 {[%clk 0:00:13]} 93. Kxe7 {[%clk 0:00:09]} 1/2-1/2


[Site "https://www.chess.com"]